fUST/lending_fUST_20240501
["ID","MTS","AMOUNT","RATE_DAILY","PERIOD"]
[324990585,1714498253407,-516.51,0.0003315,7]
[324990586,1714498253416,-500.0,0.0003315,7]
[324990587,1714498253425,-500.0,0.0003315,7]
[324990588,1714498253434,-297.56226102,0.0003315,7]
[324990589,1714498253443,-500.0,0.0003315,7]
[324990590,1714498253457,-816.57,0.0003315,7]
[324990591,1714498253467,-500.0,0.0003315,7]
[324990592,1714498253476,-500.0,0.0003315,7]
[324990593,1714498253485,-151.0,0.0003315,2]
[324990594,1714498253495,-500.0,0.0003315,7]
[324990595,1714498253505,-752.14,0.0003315,7]
[324990596,1714498253515,-500.0,0.0003315,7]
[324990597,1714498253524,-500.0,0.0003315,7]
[324990598,1714498253533,-601.45,0.0003315,7]
[324990599,1714498253543,-500.0,0.0003315,7]
[324990600,1714498253552,-500.0,0.0003315,7]
[324990601,1714498253561,-500.0,0.0003315,7]
[324990602,1714498253570,-527.14,0.0003315,7]
[324990603,1714498253579,-500.0,0.0003315,7]
[324990604,1714498253589,-1001.48,0.0003315,7]
[324990605,1714498253599,-500.0,0.0003315,7]
[324990606,1714498253607,-500.0,0.0003315,7]
[324990607,1714498253616,-540.41,0.0003315,7]
[324990608,1714498253626,-500.0,0.0003315,7]
[324990609,1714498253635,-500.0,0.0003315,7]
[324990610,1714498253645,-500.0,0.0003315,7]
[324990611,1714498253654,-500.0,0.0003315,7]
[324990612,1714498253663,-509.86556274,0.0003315,7]
[324990613,1714498253672,-500.0,0.0003315,7]
[324990614,1714498253682,-500.0,0.0003315,7]
[324990615,1714498253691,-500.0,0.0003315,7]
[324990616,1714498253702,-434.97621626,0.0003315,7]
[324990617,1714498253712,-577.64,0.0003315,7]
[324990618,1714498253721,-500.0,0.0003315,7]
[324990619,1714498253730,-500.0,0.0003315,7]
[324990620,1714498253739,-573.36,0.0003315,7]
[324990621,1714498253749,-500.0,0.0003315,7]
[324990622,1714498253758,-500.0,0.0003315,7]
[324990623,1714498253767,-1313.81,0.0003315,7]
[324990624,1714498253777,-601.8,0.0003315,7]
[324990625,1714498253786,-500.0,0.0003315,7]
[324990626,1714498253796,-607.37778778,0.0003315,7]
[324990627,1714498253805,-545.05,0.0003315,7]
[324990628,1714498253814,-747.04,0.0003315,7]
[324990629,1714498253823,-790.15,0.0003315,7]
[324990630,1714498253832,-683.08,0.0003315,7]
[324990631,1714498253842,-500.0,0.0003315,7]
[324990632,1714498253851,-729.73,0.0003315,7]
[324990633,1714498253860,-500.0,0.0003315,7]
[324990634,1714498253870,-984.74,0.0003315,7]
[324990635,1714498253879,-1003.19,0.0003315,7]
[324990636,1714498253888,-1202.87,0.0003315,7]
[324990637,1714498253898,-3192.74,0.0003315,7]
[324990638,1714498253907,-500.0,0.0003315,7]
[324990639,1714498253916,-799.68,0.0003315,7]
[324990640,1714498253926,-833.17,0.0003315,7]
[324990641,1714498253935,-500.0,0.0003315,7]
[324990642,1714498253944,-230.51609416,0.0003315,7]
[324990643,1714498253956,-1010.35,0.0003315,7]
[324990644,1714498253965,-500.0,0.0003315,7]
[324990645,1714498253974,-500.0,0.0003315,7]
[324990646,1714498253983,-500.0,0.0003315,7]
[324990647,1714498253992,-784.63,0.0003315,7]
[324990648,1714498254001,-500.0,0.0003315,7]
[324990649,1714498254010,-537.51,0.0003315,7]
[324990650,1714498254020,-513.67,0.0003315,7]
[324990651,1714498254031,-500.0,0.0003315,7]
[324990652,1714498254040,-573.62,0.0003315,7]
[324990653,1714498254050,-542.16,0.0003315,7]
[324990654,1714498254059,-500.0,0.0003315,7]
[324990655,1714498254068,-796.51,0.0003315,7]
[324990656,1714498254077,-500.0,0.0003315,7]
[324990657,1714498254087,-500.0,0.0003315,7]
[324990658,1714498254096,-500.0,0.0003315,7]
[324990659,1714498254105,-500.0,0.0003315,7]
[324990660,1714498254115,-500.0,0.0003315,7]
[324990661,1714498254128,-577.23,0.0003315,7]
[324990662,1714498254137,-500.0,0.0003315,7]
[324990663,1714498254147,-501.62222181,0.0003315,7]
[324990664,1714498254156,-500.0,0.0003315,7]
[324990665,1714498254166,-500.0,0.0003315,7]
[324990666,1714498254175,-500.0,0.0003315,7]
[324990667,1714498254185,-500.0,0.0003315,7]
[324990668,1714498254194,-500.0,0.0003315,7]
[324990669,1714498254206,-500.0,0.0003315,7]
[324990670,1714498254216,-3076.51,0.0003315,7]
[324990671,1714498254226,-502.00575313,0.0003315,7]
[324990672,1714498254235,-244.06323343,0.0003315,7]
[324990673,1714498254261,-255.93676657,0.0003315,7]
[324990674,1714498254272,-703.44,0.0003315,7]
[324990675,1714498254282,-500.0,0.0003315,7]
[324990676,1714498254291,-500.0,0.0003315,7]
[324990677,1714498254303,-568.32,0.0003315,7]
[324990678,1714498254311,-500.0,0.0003315,7]
[324990679,1714498254320,-500.0,0.0003315,7]
[324990680,1714498254330,-500.0,0.0003315,7]
[324990681,1714498254339,-500.0,0.0003315,7]
[324990682,1714498254348,-500.0,0.0003315,7]
[324990683,1714498254358,-500.0,0.0003315,7]
[324990684,1714498254367,-500.0,0.0003315,7]
[324990685,1714498254376,-500.0,0.0003315,7]
[324990686,1714498254385,-500.0,0.0003315,7]
[324990687,1714498254394,-630.73,0.0003315,7]
[324990688,1714498254403,-736.42,0.0003315,7]
[324990689,1714498254412,-500.0,0.0003315,7]
[324990690,1714498254421,-1738.83,0.0003315,7]
[324990691,1714498254430,-272.51632962,0.0003315,7]
[324990692,1714498254439,-6.58520381,0.0003315,7]
[324990693,1714498256486,-36051.6288385,0.00020903,2]
[324990694,1714498256503,-23167.15920984,0.00020903,2]
[324990695,1714498256514,-164.0768642,0.00020903,2]
[324990696,1714498256524,-2929.2665084,0.00028509,2]
[324990697,1714498256535,-12339.05,0.0003177,3]
[324990698,1714498256546,-505.17530087,0.0003178,2]
[324990699,1714498256562,-500.0,0.0003178,2]
[324990700,1714498256572,-500.0,0.0003178,2]
[324990701,1714498256582,-500.0,0.0003178,30]
[324990702,1714498256591,-500.0,0.00032054,2]
[324990703,1714498256602,-500.0,0.00032054,2]
[324990704,1714498256611,-500.0,0.00032054,30]
[324990705,1714498256621,-510.11486433,0.00032328,2]
[324990706,1714498256630,-500.0,0.00032328,30]
[324990707,1714498256640,-493.41479619,0.0003315,7]
[324990708,1714498256650,-500.0,0.0003315,7]
[324990709,1714498256660,-500.0,0.0003315,7]
[324990710,1714498256670,-500.0,0.0003315,7]
[324990711,1714498256680,-936.02,0.0003315,7]
[324990712,1714498256690,-1726.72,0.0003315,7]
[324990713,1714498256705,-173.81823423,0.0003315,7]
[324990714,1714498256720,-559.92,0.0003315,7]
[324990715,1714498256730,-500.0,0.0003315,7]
[324990716,1714498256740,-500.0,0.0003315,7]
[324990717,1714498256751,-787.16,0.0003315,7]
[324990718,1714498256761,-500.0,0.0003315,7]
[324990719,1714498256772,-500.0,0.0003315,7]
[324990720,1714498256782,-370.0,0.00033151,2]
[324990721,1714498256792,-500.0,0.00033161,2]
[324990722,1714498256802,-178.979254,0.00033171,2]
[324990723,1714498256812,-187.351213,0.00033171,2]
[324990724,1714498256823,-167.372942,0.00033171,2]
[324990725,1714498256833,-187.928216,0.00033171,2]
[324990726,1714498256843,-556.2,0.00033205,14]
[324990727,1714498256854,-237.9832,0.00033217,2]
[324990728,1714498256864,-150.0,0.00033327,2]
[324990729,1714498256875,-153.0,0.00033334,2]
[324990730,1714498256885,-153.0,0.00033334,2]
[324990731,1714498256895,-153.0,0.00033334,2]
[324990732,1714498256904,-153.0,0.00033334,2]
[324990733,1714498256913,-153.0,0.00033334,2]
[324990734,1714498256923,-153.0,0.00033334,2]
[324990735,1714498256933,-153.0,0.00033334,2]
[324990736,1714498256942,-153.0,0.00033334,2]
[324990737,1714498256956,-153.0,0.00033334,2]
[324990738,1714498256965,-153.0,0.00033334,2]
[324990739,1714498256975,-153.0,0.00033334,2]
[324990740,1714498256984,-153.0,0.00033334,2]
[324990741,1714498256994,-153.0,0.00033334,2]
[324990742,1714498257003,-153.0,0.00033334,2]
[324990743,1714498257012,-153.0,0.00033334,2]
[324990744,1714498257024,-153.0,0.00033334,2]
[324990745,1714498257033,-153.0,0.00033334,2]
[324990746,1714498257043,-153.0,0.00033334,2]
[324990747,1714498257052,-153.0,0.00033334,2]
[324990748,1714498257062,-153.0,0.00033334,2]
[324990749,1714498257071,-153.0,0.00033334,2]
[324990750,1714498257080,-153.0,0.00033334,2]
[324990751,1714498257090,-153.0,0.00033334,2]
[324990752,1714498257099,-153.0,0.00033334,2]
[324990753,1714498257109,-153.0,0.00033334,2]
[324990754,1714498257119,-153.0,0.00033334,2]
[324990755,1714498257129,-153.0,0.00033334,2]
[324990756,1714498257139,-153.0,0.00033334,2]
[324990757,1714498257150,-153.0,0.00033334,2]
[324990758,1714498257159,-153.0,0.00033334,2]
[324990759,1714498257169,-153.0,0.00033334,2]
[324990760,1714498257179,-153.0,0.00033334,2]
[324990761,1714498257188,-153.0,0.00033334,2]
[324990762,1714498257197,-153.0,0.00033334,2]
[324990763,1714498257213,-153.0,0.00033334,2]
[324990764,1714498257223,-153.0,0.00033334,2]
[324990765,1714498257232,-153.0,0.00033334,2]
[324990766,1714498257242,-153.0,0.00033334,2]
[324990767,1714498257251,-153.0,0.00033334,2]
[324990768,1714498257261,-153.0,0.00033334,2]
[324990769,1714498257270,-153.0,0.00033334,2]
[324990770,1714498257279,-153.0,0.00033334,2]
[324990771,1714498257288,-153.0,0.00033334,2]
[324990772,1714498257298,-153.0,0.00033334,2]
[324990773,1714498257308,-153.0,0.00033334,2]
[324990774,1714498257317,-153.0,0.00033334,2]
[324990775,1714498257327,-153.0,0.00033334,2]
[324990776,1714498257336,-153.0,0.00033334,2]
[324990777,1714498257346,-153.0,0.00033334,2]
[324990778,1714498257355,-153.0,0.00033334,2]
[324990779,1714498257364,-153.0,0.00033334,2]
[324990780,1714498257373,-287.0,0.000334,6]
[324990781,1714498257382,-177.0,0.000334,7]
[324990782,1714498257392,-882.7632,0.000334,2]
[324990783,1714498257401,-150.0,0.000334,2]
[324990784,1714498257411,-500.0,0.00033424,7]
[324990785,1714498257420,-500.0,0.00033424,7]
[324990786,1714498257430,-500.0,0.00033424,7]
[324990787,1714498257439,-1291.95,0.00033424,7]
[324990788,1714498257453,-500.0,0.00033424,7]
[324990789,1714498257465,-477.76086263,0.00033424,7]
[324990790,1714498257475,-300.0,0.00033424,7]
[324990791,1714498257484,-533.97831515,0.00033424,7]
[324990792,1714498257494,-563.72,0.00033424,7]
[324990793,1714498257503,-500.0,0.00033424,7]
[324990794,1714498257512,-500.0,0.00033424,7]
[324990795,1714498257521,-500.0,0.00033424,7]
[324990796,1714498257531,-500.0,0.00033424,7]
[324990797,1714498257541,-151.484252,0.00033424,2]
[324990798,1714498257550,-789.49,0.00033424,7]
[324990799,1714498257559,-500.0,0.00033424,7]
[324990800,1714498257569,-500.0,0.00033424,7]
[324990801,1714498257578,-500.0,0.00033424,7]
[324990802,1714498257588,-618.63597158,0.00033424,7]
[324990803,1714498257597,-500.0,0.00033424,7]
[324990804,1714498257607,-500.0,0.00033424,7]
[324990805,1714498257617,-500.0,0.00033424,7]
[324990806,1714498257626,-500.0,0.00033424,7]
[324990807,1714498257636,-500.0,0.00033424,7]
[324990808,1714498257645,-897.66,0.00033424,7]
[324990809,1714498257655,-747.59,0.00033424,7]
[324990810,1714498257664,-500.0,0.00033424,7]
[324990811,1714498257674,-500.0,0.00033424,7]
[324990812,1714498257684,-500.0,0.00033424,7]
[324990813,1714498257694,-533.64,0.00033424,7]
[324990814,1714498257706,-500.0,0.00033424,7]
[324990815,1714498257715,-597.02,0.00033424,7]
[324990816,1714498257725,-869.95,0.00033424,7]
[324990817,1714498257735,-500.0,0.00033424,7]
[324990818,1714498257744,-500.0,0.00033424,7]
[324990819,1714498257754,-500.0,0.00033424,2]
[324990820,1714498257763,-153.453431,0.00033424,2]
[324990821,1714498257773,-500.0,0.00033424,7]
[324990822,1714498257782,-500.0,0.00033424,7]
[324990823,1714498257792,-552.05,0.00033424,7]
[324990824,1714498257801,-500.0,0.00033424,7]
[324990825,1714498257811,-500.0,0.00033424,7]
[324990826,1714498257820,-500.0,0.00033424,7]
[324990827,1714498257829,-602.58,0.00033424,7]
[324990828,1714498257839,-826.15,0.00033424,7]
[324990829,1714498257848,-500.0,0.00033424,7]
[324990830,1714498257857,-500.0,0.00033424,7]
[324990831,1714498257866,-649.55,0.00033424,7]
[324990832,1714498257875,-500.0,0.00033424,7]
[324990833,1714498257884,-151.0,0.00033424,2]
[324990834,1714498257893,-500.0,0.00033424,7]
[324990835,1714498257902,-500.0,0.00033424,7]
[324990836,1714498257911,-500.0,0.00033424,7]
[324990837,1714498257921,-500.0,0.00033424,7]
[324990838,1714498257930,-500.0,0.00033424,7]
[324990839,1714498257939,-552.12,0.00033424,7]
[324990840,1714498257949,-527.49,0.00033424,7]
[324990841,1714498257960,-500.0,0.00033424,7]
[324990842,1714498257969,-500.0,0.00033424,7]
[324990843,1714498257978,-500.0,0.00033424,7]
[324990844,1714498257987,-516.51,0.00033424,7]
[324990845,1714498257996,-500.0,0.00033424,7]
[324990846,1714498258006,-344.2782891,0.00033424,7]
[324990847,1714498258015,-382.52957981,0.00033424,7]
[324990848,1714498258024,-816.57,0.00033424,7]
[324990849,1714498258033,-500.0,0.00033424,7]
[324990850,1714498258042,-500.0,0.00033424,7]
[324990851,1714498258052,-151.0,0.00033424,2]
[324990852,1714498258061,-500.0,0.00033424,7]
[324990853,1714498258070,-752.14,0.00033424,7]
[324990854,1714498258079,-500.0,0.00033424,7]
[324990855,1714498258089,-500.0,0.00033424,7]
[324990856,1714498258098,-601.45,0.00033424,7]
[324990857,1714498258107,-500.0,0.00033424,7]
[324990858,1714498258117,-500.0,0.00033424,7]
[324990859,1714498258132,-500.0,0.00033424,7]
[324990860,1714498258142,-527.14,0.00033424,7]
[324990861,1714498258152,-500.0,0.00033424,7]
[324990862,1714498258163,-1001.48,0.00033424,7]
[324990863,1714498258172,-500.0,0.00033424,7]
[324990864,1714498258181,-338.22699436,0.00033424,7]
[324990865,1714498258190,-540.41,0.00033424,7]
[324990866,1714498258200,-500.0,0.00033424,7]
[324990867,1714498258210,-500.0,0.00033424,7]
[324990868,1714498258219,-500.0,0.00033424,7]
[324990869,1714498258230,-375.974301,0.00033424,7]
[324990870,1714498258239,-151.0,0.00033424,2]
[324990871,1714498258248,-500.0,0.00033424,7]
[324990872,1714498258257,-500.0,0.00033424,7]
[324990873,1714498258266,-500.0,0.00033424,7]
[324990874,1714498258275,-577.64,0.00033424,7]
[324990875,1714498258284,-2302.505481,0.00033424,2]
[324990876,1714498258294,-500.0,0.00033424,7]
[324990877,1714498258303,-2302.505481,0.00033424,2]
[324990878,1714498258312,-893.100649,0.00033424,2]
[324990879,1714498258321,-500.0,0.00033424,7]
[324990880,1714498258330,-573.36,0.00033424,7]
[324990881,1714498258339,-500.0,0.00033424,7]
[324990882,1714498258349,-893.100649,0.00033424,2]
[324990883,1714498258358,-327.48749,0.00033424,2]
[324990884,1714498258367,-500.0,0.00033424,7]
[324990885,1714498258376,-1313.81,0.00033424,7]
[324990886,1714498258386,-327.48749,0.00033424,2]
[324990887,1714498258395,-518.512554,0.00033424,2]
[324990888,1714498258404,-151.0,0.00033424,2]
[324990889,1714498258414,-518.512554,0.00033424,2]
[324990890,1714498258423,-601.8,0.00033424,7]
[324990891,1714498258433,-151.0,0.00033424,2]
[324990892,1714498258442,-500.0,0.00033424,7]
[324990893,1714498258452,-545.05,0.00033424,7]
[324990894,1714498258461,-747.04,0.00033424,7]
[324990895,1714498258470,-790.15,0.00033424,7]
[324990896,1714498258479,-683.08,0.00033424,7]
[324990897,1714498258489,-500.0,0.00033424,7]
[324990898,1714498258498,-729.73,0.00033424,7]
[324990899,1714498258507,-151.0,0.00033424,2]
[324990900,1714498258516,-500.0,0.00033424,7]
[324990901,1714498258526,-984.74,0.00033424,7]
[324990902,1714498258535,-1003.19,0.00033424,7]
[324990903,1714498258544,-1202.87,0.00033424,7]
[324990904,1714498258553,-3192.74,0.00033424,7]
[324990905,1714498258562,-500.0,0.00033424,7]
[324990906,1714498258572,-799.68,0.00033424,7]
[324990907,1714498258581,-833.17,0.00033424,7]
[324990908,1714498258590,-500.0,0.00033424,7]
[324990909,1714498258599,-151.0,0.00033424,2]
[324990910,1714498258608,-151.0,0.00033424,2]
[324990911,1714498258618,-241.710744,0.00033424,2]
[324990912,1714498258627,-1010.35,0.00033424,7]
[324990913,1714498258638,-151.0,0.00033424,2]
[324990914,1714498258647,-241.710744,0.00033424,2]
[324990915,1714498258660,-500.0,0.00033424,7]
[324990916,1714498258669,-500.0,0.00033424,7]
[324990917,1714498258679,-151.0,0.00033424,2]
[324990918,1714498258688,-500.0,0.00033424,7]
[324990919,1714498258697,-784.63,0.00033424,7]
[324990920,1714498258708,-500.0,0.00033424,7]
[324990921,1714498258717,-327.944415,0.00033424,2]
[324990922,1714498258726,-159.227089,0.00033424,2]
[324990923,1714498258735,-537.51,0.00033424,7]
[324990924,1714498258744,-327.944415,0.00033424,2]
[324990925,1714498258753,-159.227089,0.00033424,2]
[324990926,1714498258762,-513.67,0.00033424,7]
[324990927,1714498258771,-500.0,0.00033424,7]
[324990928,1714498258780,-573.62,0.00033424,7]
[324990929,1714498258790,-542.16,0.00033424,7]
[324990930,1714498258799,-225.59207033,0.00033424,7]
[324990931,1714498258808,-796.51,0.00033424,7]
[324990932,1714498258817,-500.0,0.00033424,7]
[324990933,1714498258826,-500.0,0.00033424,7]
[324990934,1714498258835,-500.0,0.00033424,7]
[324990935,1714498258844,-500.0,0.00033424,7]
[324990936,1714498258853,-500.0,0.00033424,7]
[324990937,1714498258862,-577.23,0.00033424,7]
[324990938,1714498258871,-366.3222591,0.00033424,7]
[324990939,1714498258880,-500.0,0.00033424,7]
[324990940,1714498258891,-231.814882,0.00033424,2]
[324990941,1714498258901,-589.38950977,0.00033424,7]
[324990942,1714498258910,-500.0,0.00033424,7]
[324990943,1714498259035,-231.814882,0.00033424,2]
[324990944,1714498259045,-500.0,0.00033424,7]
[324990945,1714498259054,-500.0,0.00033424,7]
[324990946,1714498259063,-500.0,0.00033424,7]
[324990947,1714498259072,-3076.51,0.00033424,7]
[324990948,1714498259082,-151.0,0.00033424,2]
[324990949,1714498259092,-500.0,0.00033424,7]
[324990950,1714498259102,-703.44,0.00033424,7]
[324990951,1714498259111,-500.0,0.00033424,7]
[324990952,1714498259120,-1619.092304,0.00033424,2]
[324990953,1714498259130,-1619.092304,0.00033424,2]
[324990954,1714498259141,-500.0,0.00033424,7]
[324990955,1714498259151,-568.32,0.00033424,7]
[324990956,1714498259160,-500.0,0.00033424,7]
[324990957,1714498259169,-500.0,0.00033424,7]
[324990958,1714498259180,-500.0,0.00033424,7]
[324990959,1714498259189,-292.753568,0.00033424,2]
[324990960,1714498259199,-500.0,0.00033424,7]
[324990961,1714498259211,-292.753568,0.00033424,2]
[324990962,1714498259224,-500.0,0.00033424,7]
[324990963,1714498259234,-500.0,0.00033424,7]
[324990964,1714498259244,-500.0,0.00033424,7]
[324990965,1714498259254,-500.0,0.00033424,7]
[324990966,1714498259263,-151.0,0.00033424,2]
[324990967,1714498259273,-500.0,0.00033424,7]
[324990968,1714498259282,-630.73,0.00033424,7]
[324990969,1714498259291,-151.0,0.00033424,2]
[324990970,1714498259301,-736.42,0.00033424,7]
[324990971,1714498259310,-500.0,0.00033424,7]
[324990972,1714498259319,-1738.83,0.00033424,7]
[324990973,1714498259329,-500.0,0.00033424,7]
[324990974,1714498259338,-500.0,0.00033424,7]
[324990975,1714498259348,-500.0,0.00033424,7]
[324990976,1714498259357,-500.0,0.00033424,7]
[324990977,1714498259367,-936.02,0.00033424,7]
[324990978,1714498259376,-1726.72,0.00033424,7]
[324990979,1714498259385,-559.92,0.00033424,7]
[324990980,1714498259394,-500.0,0.00033424,7]
[324990981,1714498259403,-500.0,0.00033424,7]
[324990982,1714498259412,-787.16,0.00033424,7]
[324990983,1714498259422,-500.0,0.00033424,7]
[324990984,1714498259431,-500.0,0.00033424,7]
[324990985,1714498259440,-150.0,0.00033442,4]
[324990986,1714498259449,-154.84515485,0.0003349,7]
[324990987,1714498259462,-153.0,0.00033663,2]
[324990988,1714498259471,-500.0,0.00033698,7]
[324990989,1714498259480,-500.0,0.00033698,7]
[324990990,1714498259488,-500.0,0.00033698,7]
[324990991,1714498259497,-1291.95,0.00033698,7]
[324990992,1714498259506,-500.0,0.00033698,7]
[324990993,1714498259515,-300.0,0.00033698,7]
[324990994,1714498259524,-563.72,0.00033698,7]
[324990995,1714498259532,-500.0,0.00033698,7]
[324990996,1714498259542,-439.83709931,0.00033698,7]
[324990997,1714498259551,-500.0,0.00033698,7]
[324990998,1714498259560,-500.0,0.00033698,7]
[324990999,1714498259569,-789.49,0.00033698,7]
[324991000,1714498259578,-500.0,0.00033698,7]
[324991001,1714498259587,-500.0,0.00033698,7]
[324991002,1714498259597,-500.0,0.00033698,7]
[324991003,1714498259606,-500.0,0.00033698,7]
[324991004,1714498259615,-151.0,0.00033698,2]
[324991005,1714498259624,-500.0,0.00033698,7]
[324991006,1714498259634,-500.0,0.00033698,7]
[324991007,1714498259643,-500.0,0.00033698,7]
[324991008,1714498259652,-500.0,0.00033698,7]
[324991009,1714498259661,-897.66,0.00033698,7]
[324991010,1714498259670,-151.0,0.00033698,2]
[324991011,1714498259679,-151.0,0.00033698,2]
[324991012,1714498259688,-747.59,0.00033698,7]
[324991013,1714498259697,-500.0,0.00033698,7]
[324991014,1714498259709,-500.0,0.00033698,7]
[324991015,1714498259718,-500.0,0.00033698,7]
[324991016,1714498259727,-533.64,0.00033698,7]
[324991017,1714498259736,-500.0,0.00033698,7]
[324991018,1714498259745,-597.02,0.00033698,7]
[324991019,1714498259755,-869.95,0.00033698,7]
[324991020,1714498259764,-500.0,0.00033698,7]
[324991021,1714498259773,-500.0,0.00033698,7]
[324991022,1714498259782,-500.0,0.00033698,2]
[324991023,1714498259791,-500.0,0.00033698,7]
[324991024,1714498259801,-500.0,0.00033698,7]
[324991025,1714498259810,-552.05,0.00033698,7]
[324991026,1714498259819,-500.0,0.00033698,7]
[324991027,1714498259828,-500.0,0.00033698,7]
[324991028,1714498259837,-356.6360745,0.00033698,7]
[324991029,1714498259846,-602.58,0.00033698,7]
[324991030,1714498259855,-826.15,0.00033698,7]
[324991031,1714498259864,-500.0,0.00033698,7]
[324991032,1714498259873,-500.0,0.00033698,7]
[324991033,1714498259882,-649.55,0.00033698,7]
[324991034,1714498259891,-500.0,0.00033698,7]
[324991035,1714498259900,-197.31769286,0.00033698,7]
[324991036,1714498259909,-481.27021067,0.00033698,7]
[324991037,1714498259919,-500.0,0.00033698,7]
[324991038,1714498259928,-500.0,0.00033698,7]
[324991039,1714498259936,-500.0,0.00033698,7]
[324991040,1714498259946,-552.12,0.00033698,7]
[324991041,1714498259957,-527.49,0.00033698,7]
[324991042,1714498259966,-500.0,0.00033698,7]
[324991043,1714498259975,-500.0,0.00033698,7]
[324991044,1714498259984,-500.0,0.00033698,7]
[324991045,1714498259993,-516.51,0.00033698,7]
[324991046,1714498260003,-500.0,0.00033698,7]
[324991047,1714498260012,-816.57,0.00033698,7]
[324991048,1714498260021,-500.0,0.00033698,7]
[324991049,1714498260030,-500.0,0.00033698,7]
[324991050,1714498260039,-500.0,0.00033698,7]
[324991051,1714498260049,-752.14,0.00033698,7]
[324991052,1714498260058,-500.0,0.00033698,7]
[324991053,1714498260067,-500.0,0.00033698,7]
[324991054,1714498260076,-601.45,0.00033698,7]
[324991055,1714498260085,-500.0,0.00033698,7]
[324991056,1714498260094,-500.0,0.00033698,7]
[324991057,1714498260103,-500.0,0.00033698,7]
[324991058,1714498260112,-527.14,0.00033698,7]
[324991059,1714498260122,-500.0,0.00033698,7]
[324991060,1714498260132,-1001.48,0.00033698,7]
[324991061,1714498260143,-500.0,0.00033698,7]
[324991062,1714498260152,-540.41,0.00033698,7]
[324991063,1714498260163,-500.0,0.00033698,7]
[324991064,1714498260172,-500.0,0.00033698,7]
[324991065,1714498260181,-500.0,0.00033698,7]
[324991066,1714498260190,-500.0,0.00033698,7]
[324991067,1714498260199,-545.59666765,0.00033698,7]
[324991068,1714498260213,-500.0,0.00033698,7]
[324991069,1714498260222,-577.64,0.00033698,7]
[324991070,1714498260232,-500.0,0.00033698,7]
[324991071,1714498260242,-500.0,0.00033698,7]
[324991072,1714498260252,-573.36,0.00033698,7]
[324991073,1714498260261,-500.0,0.00033698,7]
[324991074,1714498260271,-500.0,0.00033698,7]
[324991075,1714498260280,-1313.81,0.00033698,7]
[324991076,1714498260290,-601.8,0.00033698,7]
[324991077,1714498260299,-500.0,0.00033698,7]
[324991078,1714498260310,-545.05,0.00033698,7]
[324991079,1714498260319,-747.04,0.00033698,7]
[324991080,1714498260328,-790.15,0.00033698,7]
[324991081,1714498260338,-683.08,0.00033698,7]
[324991082,1714498260347,-729.73,0.00033698,7]
[324991083,1714498260356,-500.0,0.00033698,7]
[324991084,1714498260366,-984.74,0.00033698,7]